fUSD/lending_fUSD_20251201
["ID","MTS","AMOUNT","RATE_DAILY","PERIOD"]
[395322604,1764622244017,-1000.0,0.00017521,2]
[395322605,1764622244026,-896.58,0.00017561,2]
[395322606,1764622244036,-437.91877358,0.00017773,2]
[395322607,1764622244046,-160.03289921,0.00017773,2]
[395322608,1764622244055,-500.0,0.00017773,2]
[395322609,1764622244064,-595.75018119,0.00017773,2]
[395322610,1764622244074,-500.0,0.00017773,2]
[395322611,1764622244083,-500.0,0.00017773,2]
[395322612,1764622244092,-500.0,0.00017773,2]
[395322613,1764622244101,-500.0,0.00017773,2]
[395322614,1764622244111,-500.0,0.00017773,2]
[395322615,1764622244120,-500.0,0.00017773,2]
[395322616,1764622244129,-500.0,0.00017773,2]
[395322617,1764622244139,-500.0,0.00017773,2]
[395322618,1764622244148,-506.88790336,0.00017773,2]
[395322619,1764622244157,-500.0,0.00017773,2]
[395322620,1764622244167,-500.0,0.00017773,2]
[395322621,1764622244176,-500.0,0.00017773,2]
[395322622,1764622244185,-217.00327303,0.00017773,2]
[395322623,1764622244196,-500.0,0.00017773,2]
[395322624,1764622244210,-500.0,0.00017773,2]
[395322625,1764622244219,-763.3343755,0.00018051,2]
[395322626,1764622244228,-371.11170021,0.00018068,2]
[395322627,1764622244238,-250.0,0.00018141,2]
[395322628,1764622244251,-170.0,0.00018169,2]
[395322629,1764622244260,-188.66694152,0.00018383,2]
[395322630,1764622244270,-167.4,0.0001883,2]
[395322631,1764622244281,-150.0,0.0001883,2]
[395322632,1764622244291,-1000.0,0.00018887,2]
[395322633,1764622244301,-5282.73853159,0.00019,2]
[395322634,1764622244311,-183.27512278,0.00019,2]
[395322635,1764622244321,-471.54,0.00020187,2]
[395322636,1764622244330,-151.0,0.00020548,2]
[395322637,1764622244340,-151.0,0.00020548,2]
[395322638,1764622244350,-1000.0,0.00020775,2]
[395322639,1764622244360,-7071.92961817,0.000215,2]
[395322640,1764622244370,-5000.0,0.00021918,2]
[395322641,1764622244379,-150.0,0.00021918,2]
[395322642,1764622244389,-188.66694152,0.00022217,2]
[395322643,1764622244399,-150.0,0.00022329,2]
[395322644,1764622244408,-548.64,0.000226,7]
[395322645,1764622244419,-1000.0,0.00022664,2]
[395322646,1764622244704,-182.86,0.00022707,2]
[395322647,1764622244715,-150.0,0.0002274,2]
[395322648,1764622244725,-156.24154383,0.00022821,2]
[395322649,1764622244734,-150.0,0.00023151,2]
[395322650,1764622244743,-150.0,0.00023562,2]
[395322651,1764622244753,-150.0,0.00023973,2]
[395322652,1764622244763,-150.0,0.00024384,2]
[395322653,1764622244772,-151.0,0.00024658,2]
[395322654,1764622244782,-1000.0,0.00024658,2]
[395322655,1764622244791,-150.0,0.00024795,2]
[395322656,1764622244801,-300.0,0.00024899,10]
[395322657,1764622244811,-254.64,0.00025058,2]
[395322658,1764622244821,-1217.12,0.00025058,2]
[395322659,1764622244830,-909.0,0.00025058,2]
[395322660,1764622244840,-150.0,0.00025205,2]
[395322661,1764622244850,-365.36,0.00025296,2]
[395322662,1764622244860,-150.0,0.00025616,2]
[395322663,1764622244869,-150.0,0.00026027,2]
[395322664,1764622244879,-188.66694152,0.00026052,2]
[395322665,1764622244888,-258.87,0.00026389,2]
[395322666,1764622244898,-150.0,0.00026438,2]
[395322667,1764622244908,-471.54,0.00026676,2]
[395322668,1764622244917,-150.0,0.00026849,2]
[395322669,1764622244926,-150.0,0.0002726,2]
[395322670,1764622244935,-150.0,0.00027369,2]
[395322671,1764622244945,-312.032951,0.00027397,7]
[395322672,1764622244954,-312.032951,0.00027397,7]
[395322673,1764622244963,-312.032951,0.00027397,7]
[395322674,1764622244972,-312.032951,0.00027397,7]
[395322675,1764622244980,-312.032951,0.00027397,7]
[395322676,1764622244989,-312.032951,0.00027397,7]
[395322677,1764622244999,-312.032951,0.00027397,7]
[395322678,1764622245008,-312.032951,0.00027397,7]
[395322679,1764622245018,-151.0,0.00027397,7]
[395322680,1764622245027,-150.0,0.00027671,2]
[395322681,1764622245037,-3607.03,0.00027902,2]
[395322682,1764622245046,-1194.0,0.00028058,2]
[395322683,1764622245055,-909.0,0.00028058,2]
[395322684,1764622245065,-150.0,0.00028082,2]
[395322685,1764622245074,-167.4,0.00028245,2]
[395322686,1764622245084,-176.07,0.00028493,2]
[395322687,1764622245094,-150.0,0.00028493,2]
[395322688,1764622245104,-313.03,0.00028541,2]
[395322689,1764622245113,-166.66,0.00028824,30]
[395322690,1764622245123,-150.0,0.00028904,2]
[395322691,1764622245132,-263.68352015,0.00029145,5]
[395322692,1764622245142,-150.0,0.00029315,2]
[395322693,1764622245152,-166.66,0.00029431,30]
[395322694,1764622245162,-150.0,0.00029726,2]
[395322695,1764622245171,-188.66694152,0.00029886,2]
[395322696,1764622245180,-166.66,0.00030038,30]
[395322697,1764622245190,-548.64,0.000301,7]
[395322698,1764622245201,-150.0,0.00030137,7]
[395322699,1764622245216,-150.0,0.00030548,7]
[395322700,1764622245226,-166.66,0.00030645,30]
[395322701,1764622245235,-500.0,0.00030654,2]
[395322702,1764622245246,-179.33,0.00030761,2]
[395322703,1764622245255,-7312.0,0.00030849,5]
[395322704,1764622245265,-150.0,0.00030959,7]
[395322705,1764622245275,-200.0,0.00030993,2]
[395322706,1764622245285,-1194.0,0.00031058,2]
[395322707,1764622245296,-166.66,0.00031252,30]
[395322708,1764622245305,-150.0,0.0003137,7]
[395322709,1764622245315,-169.29,0.00031507,120]
[395322710,1764622245325,-1000.0,0.00031517,2]
[395322711,1764622245335,-150.0,0.00031781,7]
[395322712,1764622245344,-166.66,0.00031858,30]
[395322713,1764622245354,-999.0,0.00032188,3]
[395322714,1764622245363,-150.0,0.00032192,7]
[395322715,1764622245372,-150.0,0.00032603,7]
[395322716,1764622245382,-1000.0,0.00032699,2]
[395322717,1764622245391,-300.0,0.00032876,10]
[395322718,1764622245401,-300.0,0.00032876,10]
[395322719,1764622245410,-694.38,0.00032876,120]
[395322720,1764622245419,-151.0,0.00032877,31]
[395322721,1764622245428,-151.0,0.00032877,31]
[395322722,1764622245438,-170.364776,0.00032877,31]
[395322723,1764622245447,-151.173101,0.00032877,31]
[395322724,1764622245456,-151.0,0.00032877,31]
[395322725,1764622245465,-151.0,0.00032877,31]
[395322726,1764622245474,-151.0,0.00032877,31]
[395322727,1764622245483,-151.0,0.00032877,31]
[395322728,1764622245492,-151.0,0.00032877,31]
[395322729,1764622245502,-151.0,0.00032877,31]
[395322730,1764622245511,-151.0,0.00032877,31]
[395322731,1764622245520,-151.0,0.00032877,31]
[395322732,1764622245529,-151.0,0.00032877,31]
[395322733,1764622245539,-151.0,0.00032877,15]
[395322734,1764622245549,-151.0,0.00032877,15]
[395322735,1764622245558,-229.914946,0.00032877,15]
[395322736,1764622245568,-275.042465,0.00032877,30]
[395322737,1764622245577,-151.0,0.00032877,31]
[395322738,1764622245587,-151.0,0.00032877,31]
[395322739,1764622245596,-151.0,0.00032877,31]
[395322740,1764622245606,-151.0,0.00032877,31]
[395322741,1764622245615,-151.0,0.00032877,31]
[395322742,1764622245626,-151.0,0.00032877,31]
[395322743,1764622245635,-151.0,0.00032877,31]
[395322744,1764622245645,-151.0,0.00032877,31]
[395322745,1764622245654,-151.0,0.00032877,31]
[395322746,1764622245665,-151.0,0.00032877,31]
[395322747,1764622245674,-151.0,0.00032877,31]
[395322748,1764622245683,-198.979555,0.00032877,31]
[395322749,1764622245693,-151.0,0.00032877,31]
[395322750,1764622245702,-151.0,0.00032877,31]
[395322751,1764622245711,-151.0,0.00032877,31]
[395322752,1764622245721,-151.0,0.00032877,31]
[395322753,1764622245729,-47.44498197,0.00032877,31]
[395322755,1764622245745,-103.55501803,0.00032877,31]
[395322756,1764622245754,-151.0,0.00032877,31]
[395322757,1764622245763,-13.57439173,0.00032877,31]
[395322758,1764622245775,-137.42560827,0.00032877,31]
[395322759,1764622245783,-151.0,0.00032877,31]
[395322760,1764622245793,-151.0,0.00032877,31]
[395322761,1764622245803,-151.0,0.00032877,31]
[395322762,1764622245811,-151.0,0.00032877,31]
[395322763,1764622245820,-151.0,0.00032877,31]
[395322764,1764622245830,-151.0,0.00032877,31]
[395322765,1764622245839,-192.218852,0.00032877,31]
[395322766,1764622245848,-192.218852,0.00032877,31]
[395322767,1764622245857,-151.0,0.00032877,31]
[395322768,1764622245866,-192.218852,0.00032877,31]
[395322769,1764622245874,-192.218852,0.00032877,31]
[395322770,1764622245882,-192.218852,0.00032877,31]
[395322771,1764622245890,-192.218852,0.00032877,31]
[395322772,1764622245900,-151.0,0.00032877,31]
[395322773,1764622245909,-151.0,0.00032877,31]
[395322774,1764622245918,-192.218852,0.00032877,31]
[395322775,1764622245927,-192.218852,0.00032877,31]
[395322776,1764622245938,-259.519463,0.00032877,31]
[395322777,1764622245948,-259.519463,0.00032877,31]
[395322778,1764622245958,-151.0,0.00032877,31]
[395322779,1764622245967,-151.0,0.00032877,31]
[395322780,1764622245976,-259.519463,0.00032877,31]
[395322781,1764622245985,-259.519463,0.00032877,31]
[395322782,1764622245995,-151.0,0.00032877,31]
[395322783,1764622246004,-259.519463,0.00032877,31]
[395322784,1764622246014,-151.0,0.00032877,31]
[395322785,1764622246023,-259.519463,0.00032877,31]
[395322786,1764622246036,-151.0,0.00032877,31]
[395322787,1764622246045,-151.0,0.00032877,31]
[395322788,1764622246055,-259.519463,0.00032877,31]
[395322789,1764622246065,-259.519463,0.00032877,31]
[395322790,1764622246074,-393.804886,0.00032877,31]
[395322791,1764622246083,-393.804886,0.00032877,31]
[395322792,1764622246093,-393.804886,0.00032877,31]
[395322793,1764622246102,-393.804886,0.00032877,31]
[395322794,1764622246112,-393.804886,0.00032877,31]
[395322795,1764622246121,-393.804886,0.00032877,31]
[395322796,1764622246131,-333.89469769,0.00032877,31]
[395322797,1764622246143,-59.91018831,0.00032877,31]
[395322798,1764622246152,-393.804886,0.00032877,31]
[395322799,1764622246163,-151.0,0.00032877,31]
[395322800,1764622246172,-151.0,0.00032877,31]
[395322801,1764622246182,-151.0,0.00032877,31]
[395322802,1764622246191,-151.0,0.00032877,31]
[395322803,1764622246201,-151.0,0.00032877,31]
[395322804,1764622246214,-151.0,0.00032877,31]
[395322805,1764622246223,-151.0,0.00032877,31]
[395322806,1764622246233,-225.594515,0.00032877,31]
[395322807,1764622246243,-151.0,0.00032877,31]
[395322808,1764622246254,-151.0,0.00032877,31]
[395322809,1764622246263,-151.0,0.00032877,31]
[395322810,1764622246273,-258.8853,0.00032877,31]
[395322811,1764622246283,-151.0,0.00032877,31]
[395322812,1764622246293,-151.0,0.00032877,31]
[395322813,1764622246303,-246.858727,0.00032877,31]
[395322814,1764622246312,-151.0,0.00032877,31]
[395322815,1764622246321,-280.313492,0.00032877,31]
[395322817,1764622246331,-159.648554,0.00032877,31]
[395322819,1764622246344,-151.0,0.00032877,31]
[395322822,1764622246366,-151.0,0.00032877,31]
[395322825,1764622246384,-151.0,0.00032877,31]
[395322829,1764622246404,-151.840417,0.00032877,31]
[395322830,1764622246424,-151.0,0.00032877,31]
[395322831,1764622246441,-151.0,0.00032877,31]
[395322832,1764622246462,-234.697994,0.00032877,31]
[395322833,1764622246482,-151.0,0.00032877,31]
[395322834,1764622246502,-151.0,0.00032877,31]
[395322835,1764622246522,-151.0,0.00032877,31]
[395322836,1764622246540,-151.0,0.00032877,31]
[395322837,1764622246556,-151.0,0.00032877,31]
[395322838,1764622246573,-151.0,0.00032877,31]
[395322839,1764622246588,-151.0,0.00032877,31]
[395322840,1764622246605,-151.0,0.00032877,31]
[395322841,1764622246621,-298.173803,0.00032877,31]
[395322842,1764622246647,-151.0,0.00032877,31]
[395322843,1764622246662,-263.946512,0.00032877,31]
[395322844,1764622246677,-151.0,0.00032877,31]
[395322845,1764622246692,-151.0,0.00032877,31]
[395322846,1764622246707,-151.0,0.00032877,31]
[395322847,1764622246722,-151.0,0.00032877,31]
[395322848,1764622246737,-151.0,0.00032877,31]
[395322849,1764622246751,-151.0,0.00032877,31]
[395322850,1764622246768,-151.0,0.00032877,31]
[395322851,1764622246783,-151.0,0.00032877,31]
[395322852,1764622246798,-154.056335,0.00032877,31]
[395322853,1764622246812,-580.453547,0.00032877,31]
[395322854,1764622246827,-354.03452442,0.00032877,31]
[395322855,1764622246846,-226.41902258,0.00032877,31]
[395322856,1764622246861,-151.0,0.00032877,31]
[395322857,1764622246876,-151.0,0.00032877,31]
[395322858,1764622246892,-152.047785,0.00032877,31]
[395322859,1764622246907,-580.453547,0.00032877,31]
[395322860,1764622246923,-238.980105,0.00032877,31]
[395322861,1764622246938,-580.453547,0.00032877,31]
[395322862,1764622246953,-580.453547,0.00032877,31]
[395322863,1764622246969,-580.453547,0.00032877,31]
[395322864,1764622246984,-580.453547,0.00032877,31]
[395322865,1764622246999,-580.453547,0.00032877,31]
[395322866,1764622247015,-151.0,0.00032877,31]
[395322867,1764622247031,-152.274942,0.00032877,31]
[395322868,1764622247047,-151.0,0.00032877,31]
[395322869,1764622247062,-253.496861,0.00032877,31]
[395322870,1764622247078,-155.611511,0.00032877,31]
[395322871,1764622247093,-151.0,0.00032877,31]
[395322872,1764622247108,-151.0,0.00032877,31]
[395322873,1764622247125,-151.0,0.00032877,31]
[395322874,1764622247141,-151.0,0.00032877,31]
[395322875,1764622247157,-151.0,0.00032877,31]
[395322876,1764622247174,-151.0,0.00032877,31]
[395322877,1764622247189,-151.0,0.00032877,31]
[395322878,1764622247207,-151.0,0.00032877,31]
[395322879,1764622247223,-151.0,0.00032877,31]
[395322880,1764622247239,-165.669364,0.00032877,31]
[395322881,1764622247255,-165.669364,0.00032877,31]
[395322882,1764622247271,-165.669364,0.00032877,31]
[395322883,1764622247287,-165.669364,0.00032877,31]
[395322884,1764622247302,-165.669364,0.00032877,31]
[395322885,1764622247318,-165.669364,0.00032877,31]
[395322886,1764622247333,-165.669364,0.00032877,31]
[395322887,1764622247348,-165.669364,0.00032877,31]
[395322888,1764622247364,-165.669364,0.00032877,31]
[395322889,1764622247380,-165.669364,0.00032877,31]
[395322890,1764622247395,-165.669364,0.00032877,31]
[395322891,1764622247410,-165.669364,0.00032877,31]
[395322892,1764622247425,-220.839827,0.00032877,31]
[395322893,1764622247441,-110.36016104,0.00032877,31]
[395322894,1764622247459,-40.63983896,0.00032877,31]
[395322895,1764622247474,-320.417674,0.00032877,31]
[395322896,1764622247489,-320.417674,0.00032877,31]
[395322897,1764622247504,-320.417674,0.00032877,31]
[395322898,1764622247519,-320.417674,0.00032877,31]
[395322899,1764622247534,-320.417674,0.00032877,31]
[395322900,1764622247549,-320.417674,0.00032877,31]
[395322901,1764622247564,-320.417674,0.00032877,31]
[395322902,1764622247579,-320.417674,0.00032877,31]
[395322903,1764622247594,-320.417674,0.00032877,31]
[395322904,1764622247609,-151.0,0.00032877,31]
[395322905,1764622247624,-151.0,0.00032877,31]
[395322906,1764622247639,-320.417674,0.00032877,31]
[395322907,1764622247654,-151.0,0.00032877,31]
[395322908,1764622247668,-320.417674,0.00032877,31]
[395322909,1764622247684,-320.417674,0.00032877,31]
[395322910,1764622247699,-151.0,0.00032877,31]
[395322911,1764622247714,-151.0,0.00032877,31]
[395322912,1764622247729,-151.0,0.00032877,31]
[395322913,1764622247743,-265.58896,0.00032877,31]
[395322914,1764622247757,-885.514335,0.00032877,31]
[395322915,1764622247773,-885.514335,0.00032877,31]
[395322916,1764622247787,-885.514335,0.00032877,31]
[395322917,1764622247801,-885.514335,0.00032877,31]
[395322918,1764622247815,-478.25043456,0.00032877,31]
[395322919,1764622247833,-407.26390044,0.00032877,31]
[395322920,1764622247848,-885.514335,0.00032877,31]
[395322921,1764622247863,-885.514335,0.00032877,31]
[395322922,1764622247879,-185.119939,0.00032877,31]
[395322923,1764622247894,-885.514335,0.00032877,31]
[395322924,1764622247910,-885.514335,0.00032877,31]
[395322925,1764622247925,-885.514335,0.00032877,31]
[395322926,1764622247941,-885.514335,0.00032877,31]
[395322927,1764622247956,-885.514335,0.00032877,31]
[395322928,1764622247971,-151.0,0.00032877,31]
[395322929,1764622247985,-151.0,0.00032877,31]
[395322930,1764622248000,-151.0,0.00032877,31]
[395322931,1764622248015,-151.0,0.00032877,31]
[395322932,1764622248029,-151.0,0.00032877,31]
[395322933,1764622248048,-282.402806,0.00032877,31]
[395322934,1764622248063,-151.0,0.00032877,31]
[395322935,1764622248078,-151.0,0.00032877,31]
[395322936,1764622248092,-151.0,0.00032877,31]
[395322937,1764622248108,-182.231992,0.00032877,30]
[395322938,1764622248123,-182.231992,0.00032877,30]
[395322939,1764622248137,-182.231992,0.00032877,30]
[395322940,1764622248152,-115.75726845,0.00032877,31]
[395322941,1764622249253,-235.44300667,0.00014548,2]
[395322942,1764622249264,-220.09324462,0.0001504,2]
[395322943,1764622249284,-133.90675538,0.0001504,2]
[395322944,1764622249294,-456.82408219,0.00031058,2]
[395322945,1764622249702,-1658.52621,0.0001507,2]
[395322946,1764622249711,-1087.33929296,0.000169,2]
[395322947,1764622249742,-2027.50418437,0.000169,2]
[395322948,1764622249751,-452.17591781,0.00031058,2]
[395322949,1764622249762,-36.41642455,0.00032877,31]
[395322950,1764622249771,-182.231992,0.00032877,30]
[395322951,1764622249780,-182.231992,0.00032877,30]
[395322952,1764622249789,-182.231992,0.00032877,30]
[395322953,1764622249799,-182.231992,0.00032877,30]
[395322954,1764622249808,-151.0,0.00032877,31]
[395322955,1764622249817,-182.231992,0.00032877,30]
[395322956,1764622249826,-151.0,0.00032877,31]
[395322957,1764622249836,-182.231992,0.00032877,30]
[395322958,1764622249845,-151.0,0.00032877,31]
[395322959,1764622249855,-182.231992,0.00032877,30]
[395322960,1764622249864,-182.231992,0.00032877,30]
[395322961,1764622249874,-182.231992,0.00032877,30]
[395322962,1764622249884,-3171.63,0.000329,2]
[395322963,1764622249894,-154.9,0.000329,14]
[395322964,1764622249903,-956.40821388,0.000329,14]
[395322965,1764622251649,-1042.37178612,0.000329,14]
[395322966,1764622251658,-150.0,0.00033014,7]
[395322967,1764622251669,-471.54,0.00033165,2]
[395322968,1764622251678,-150.0,0.00033425,7]
[395322969,1764622251688,-694.38,0.00033698,120]
[395322970,1764622251697,-188.66694152,0.00033721,2]
[395322971,1764622251706,-150.0,0.00033836,7]
[395322972,1764622251715,-1000.0,0.00033881,2]
[395322973,1764622251725,-1194.0,0.00034058,2]
[395322974,1764622251734,-909.0,0.00034058,2]
[395322975,1764622251743,-548.64,0.000342,14]
[395322976,1764622251752,-1000.0,0.000342,2]
[395322977,1764622251762,-150.0,0.00034247,7]
[395322978,1764622251771,-1620.353,0.00034435,38]
[395322979,1764622251782,-164.394,0.00034435,38]
[395322980,1764622251791,-694.38,0.0003452,120]
[395322981,1764622251801,-150.0,0.00034658,7]
[395322982,1764622251811,-1000.0,0.00035062,2]
[395322983,1764622251820,-150.0,0.00035068,7]
[395322984,1764622251830,-694.38,0.00035342,120]
[395322985,1764622251839,-150.0,0.00035479,7]
[395322986,1764622251848,-152.0,0.00035705,3]
[395322987,1764622251857,-150.0,0.0003589,14]
[395322988,1764622251867,-873.04,0.00035918,5]
[395322989,1764622251876,-694.38,0.00036164,120]
[395322990,1764622251885,-1000.0,0.00036244,2]
[395322991,1764622251894,-150.0,0.00036301,14]
[395322992,1764622251903,-150.0,0.00036712,14]
[395322993,1764622251912,-694.38,0.00036986,120]
[395322994,1764622251922,-909.0,0.00037058,2]
[395322995,1764622251931,-150.0,0.00037123,14]
[395322996,1764622251940,-154.0733767,0.000372,120]
[395322997,1764622251950,-154.07337668,0.000372,120]
[395322998,1764622251959,-154.07337668,0.000372,120]
[395322999,1764622251969,-154.07337668,0.000372,120]
[395323000,1764622251978,-154.07337668,0.000372,120]
[395323001,1764622251987,-154.9,0.000373,14]
[395323002,1764622251997,-1333.65756013,0.000373,14]
[395323033,1764623432032,-467.43,0.00013699,2]
[395323034,1764623432043,-200.7184079,0.00013699,2]
[395323035,1764623432053,-200.0,0.00013699,2]
[395323036,1764623432063,-1718.309,0.00014257,2]
[395323037,1764623432072,-160.179,0.00014257,2]
[395323038,1764623432083,-626.11966787,0.00014348,2]
[395323039,1764623432093,-150.0,0.00014445,2]
[395323040,1764623432103,-1200.0,0.00014446,2]
[395323041,1764623432114,-500.0,0.00014447,2]
[395323042,1764623432124,-223.77909765,0.00014447,2]
[395323043,1764623432134,-277.43660776,0.00014447,2]
[395323044,1764623432143,-244.20562543,0.00014447,2]
[395323045,1764623432153,-10144.11470499,0.00014448,2]
[395323046,1764623432164,-2215.52261105,0.00014448,2]
[395323047,1764623432176,-5619.95882165,0.00014448,2]
[395323048,1764623432188,-3946.84409618,0.00014448,2]
[395323049,1764623432199,-987.4479749,0.00014448,2]
[395323050,1764623432230,-10589.54760576,0.00014448,2]
[395323051,1764623432243,-1427.00894998,0.00014448,2]
[395323052,1764623432254,-429.00000014,0.00014448,2]
[395323053,1764623432265,-664.64587,0.00014448,2]
[395323054,1764623432369,-306.02975,0.00014445,2]
[395323055,1764623432381,-100.82522805,0.00014445,2]
[395323056,1764623432390,-333.80240345,0.00014445,2]
[395323057,1764623432402,-166.19759655,0.00014445,2]
[395323058,1764623432411,-104.49473232,0.00014445,2]
[395323059,1764623432903,-395.50526768,0.00014445,2]
[395323060,1764623432913,-91.36576232,0.00014445,2]
[395323061,1764623432947,-408.63423768,0.00014445,2]
[395323062,1764623432958,-160.00345295,0.00014445,2]
[395323063,1764623433035,-339.99654705,0.00014445,2]
[395323064,1764623433045,-500.0,0.00014445,2]
[395323065,1764623433054,-500.0,0.00014445,2]
[395323066,1764623433064,-500.0,0.00014445,2]
[395323067,1764623433074,-500.0,0.00014445,2]
[395323068,1764623433083,-500.0,0.00014445,2]
[395323069,1764623433092,-500.0,0.00014445,2]
[395323070,1764623433102,-500.0,0.00014445,2]
[395323071,1764623433111,-500.0,0.00014445,2]
[395323072,1764623433121,-500.0,0.00014445,2]
[395323073,1764623433131,-500.0,0.00014445,2]
[395323074,1764623433140,-500.0,0.00014445,2]
[395323075,1764623433150,-500.0,0.00014445,2]
[395323076,1764623433159,-199.56064264,0.00014445,2]
[395323077,1764623433168,-353.53338827,0.00014445,2]
[395323078,1764623433177,-500.0,0.00014445,2]
[395323079,1764623433187,-385.92510129,0.00014445,2]
[395323080,1764623433197,-500.0,0.00014445,2]
[395323081,1764623433207,-49855.14946535,0.00014448,2]
[395323082,1764623433216,-20028.87248755,0.00014448,2]
[395323083,1764623433228,-25524.23766354,0.00014448,2]
[395323084,1764623433238,-347.43508066,0.00014448,2]
[395323085,1764623433250,-297.53721885,0.00014448,2]
[395323092,1764623438145,-156.96200446,0.00014348,2]
[395323093,1764623438155,-381.47406137,0.00014445,2]
[395323094,1764623438164,-500.0,0.00014445,2]
[395323095,1764623438174,-500.0,0.00014445,2]
[395323096,1764623438184,-500.0,0.00014445,2]
[395323097,1764623438194,-500.0,0.00014445,2]
[395323098,1764623438203,-500.0,0.00014445,2]
[395323099,1764623438213,-500.0,0.00014445,2]
[395323100,1764623438223,-500.0,0.00014445,2]
[395323101,1764623438232,-500.0,0.00014445,2]
[395323102,1764623438242,-500.0,0.00014445,2]
[395323103,1764623438252,-500.0,0.00014445,2]
[395323104,1764623438262,-500.0,0.00014445,2]
[395323105,1764623438271,-500.0,0.00014445,2]
[395323106,1764623438281,-500.0,0.00014445,2]
[395323107,1764623438291,-500.0,0.00014445,2]
[395323108,1764623438300,-500.0,0.00014445,2]
[395323109,1764623438311,-500.0,0.00014445,2]
[395323110,1764623438321,-500.0,0.00014445,2]
[395323111,1764623438331,-500.0,0.00014445,2]
[395323112,1764623438341,-500.0,0.00014445,2]
[395323113,1764623438351,-500.0,0.00014445,2]
[395323114,1764623438361,-500.0,0.00014445,2]
[395323115,1764623438372,-500.0,0.00014445,2]
[395323116,1764623438381,-500.0,0.00014445,2]
[395323117,1764623438391,-593.07781795,0.00014445,2]
[395323118,1764623438401,-500.0,0.00014445,2]
[395323119,1764623438410,-500.0,0.00014445,2]
[395323120,1764623438420,-500.0,0.00014445,2]
[395323121,1764623438430,-500.0,0.00014445,2]
[395323122,1764623438439,-500.0,0.00014445,2]
[395323123,1764623438449,-73643.48302333,0.00014448,2]
[395323124,1764623438460,-15192.2635893,0.00014448,2]
[395323125,1764623438472,-2629.97761171,0.00014448,2]
[395323126,1764623438488,-769.91819325,0.00014448,2]
[395323129,1764623440245,-8819.94426786,0.00014448,2]
[395323130,1764623440257,-2748.10369327,0.00014448,2]
[395323131,1764623440465,-310.65499999,0.00014448,2]
[395323163,1764623446122,-5000.0,0.00014448,2]
[395323164,1764623446231,-18191.47137905,0.00014448,2]
[395323165,1764623446287,-452.45968249,0.00014448,2]
[395323166,1764623446300,-809.68401322,0.00014448,2]
[395323167,1764623446346,-844.13745707,0.00014448,2]
[395323168,1764623446358,-1354.57639,0.00014448,2]
[395323169,1764623446369,-1065.32192759,0.00014448,2]
[395323170,1764623446381,-42555.12221522,0.00014448,2]
[395323171,1764623446392,-653.0,0.00014448,2]
[395323172,1764623446404,-1411.03917115,0.00014448,2]
[395323173,1764623446415,-298250.43147891,0.00014448,2]
[395323174,1764623446426,-1569.37533226,0.00014448,2]
[395323197,1764624510812,98948.14172662,0.00015,4]
[395323198,1764624510836,100000.0,0.00015,4]
[395323218,1764624632295,-191.11960204,0.00013532,2]
[395323219,1764624632305,-3381.92,0.00013603,2]
[395323220,1764624632315,-150.0,0.00013632,2]
[395323221,1764624632325,-500.0,0.00014157,2]
[395323222,1764624632336,-1911.50447267,0.00014248,2]
[395323223,1764624632346,-759.152318,0.00014248,2]